fUSD/lending_fUSD_20240718
["ID","MTS","AMOUNT","RATE_DAILY","PERIOD"]
[332527978,1721288057570,-527.98,0.00025205,2]
[332527979,1721288057580,-547.08,0.00025205,2]
[332527980,1721288057590,-559.75,0.00025205,2]
[332527981,1721288057599,-500.0,0.00025205,2]
[332527982,1721288057608,-500.0,0.00025205,2]
[332527983,1721288057618,-611.76,0.00025205,2]
[332527984,1721288057628,-1173.23,0.00025205,2]
[332527985,1721288057638,-709.13,0.00025205,2]
[332527986,1721288057648,-753.22,0.00025205,2]
[332527987,1721288057660,-242.31395683,0.00025205,2]
[332527988,1721288057669,-571.73,0.00025205,2]
[332527989,1721288057679,-500.0,0.00025205,2]
[332527990,1721288057688,-500.0,0.00025205,2]
[332527991,1721288057699,-500.0,0.00025205,2]
[332527992,1721288057709,-500.0,0.00025205,2]
[332527993,1721288057719,-679.34,0.00025205,2]
[332527994,1721288057731,-393.7,0.00025205,2]
[332527995,1721288057742,-500.0,0.00025205,2]
[332527996,1721288057751,-500.0,0.00025205,2]
[332527997,1721288057761,-771.42,0.00025205,2]
[332527998,1721288057773,-500.0,0.00025205,2]
[332527999,1721288057785,-401.05027763,0.00025205,2]
[332528000,1721288057795,-500.0,0.00025205,2]
[332528001,1721288057806,-1055.96,0.00025205,2]
[332528002,1721288057815,-500.0,0.00025205,2]
[332528003,1721288057825,-500.0,0.00025205,2]
[332528004,1721288057837,-500.0,0.00025205,2]
[332528005,1721288057847,-756.04,0.00025205,2]
[332528006,1721288057857,-703.28,0.00025205,2]
[332528007,1721288057867,-750.7,0.00025205,2]
[332528008,1721288057876,-500.0,0.00025205,2]
[332528009,1721288057886,-500.0,0.00025205,2]
[332528010,1721288057896,-500.0,0.00025205,2]
[332528011,1721288057906,-1168.54,0.00025205,2]
[332528012,1721288057916,-500.0,0.00025205,2]
[332528013,1721288057926,-500.0,0.00025205,2]
[332528014,1721288057937,-500.0,0.00025205,2]
[332528015,1721288057947,-1538.77,0.00025205,2]
[332528016,1721288057958,-926.42,0.00025205,2]
[332528017,1721288057968,-1335.62,0.00025205,2]
[332528018,1721288057979,-1229.0,0.00025205,2]
[332528019,1721288057989,-500.0,0.00025205,2]
[332528020,1721288058000,-984.25,0.00025205,2]
[332528021,1721288058010,-1387.55,0.00025205,2]
[332528022,1721288058021,-500.0,0.00025205,2]
[332528023,1721288058031,-500.0,0.00025205,2]
[332528024,1721288058041,-925.35,0.00025205,2]
[332528025,1721288058051,-481.14965797,0.00025205,2]
[332528026,1721288058062,-542.52,0.00025205,2]
[332528027,1721288058072,-500.0,0.00025205,2]
[332528028,1721288058081,-500.0,0.00025205,2]
[332528029,1721288058091,-500.0,0.00025205,2]
[332528030,1721288058101,-1699.26,0.00025205,2]
[332528031,1721288058110,-542.08,0.00025205,2]
[332528032,1721288058120,-501.76174017,0.00025205,2]
[332528033,1721288058130,-560.08,0.00025205,2]
[332528034,1721288058139,-500.0,0.00025205,2]
[332528035,1721288058150,-640.31878714,0.00025205,2]
[332528036,1721288058159,-500.0,0.00025205,2]
[332528037,1721288058169,-500.0,0.00025205,2]
[332528038,1721288058178,-500.0,0.00025205,2]
[332528039,1721288058188,-1355.83,0.00025205,2]
[332528040,1721288058198,-505.95,0.00025205,2]
[332528041,1721288058207,-501.52075457,0.00025205,2]
[332528042,1721288058217,-500.0,0.00025205,2]
[332528043,1721288058228,-628.74,0.00025205,2]
[332528044,1721288058238,-500.0,0.00025205,2]
[332528045,1721288058247,-504.60871783,0.00025205,2]
[332528046,1721288058257,-676.4,0.00025205,2]
[332528047,1721288058267,-538.06,0.00025205,2]
[332528048,1721288058277,-500.0,0.00025205,2]
[332528049,1721288058287,-1065.58,0.00025205,2]
[332528050,1721288058297,-500.0,0.00025205,2]
[332528051,1721288058307,-1408.6,0.00025205,7]
[332528052,1721288058317,-872.67,0.00025205,2]
[332528053,1721288058327,-1348.92,0.00025205,2]
[332528054,1721288058336,-838.7,0.00025205,2]
[332528055,1721288058345,-500.0,0.00025205,2]
[332528056,1721288058355,-503.03,0.00025205,2]
[332528057,1721288058364,-548.43093173,0.00025205,2]
[332528058,1721288058373,-500.0,0.00025205,2]
[332528059,1721288058382,-500.0,0.00025205,2]
[332528060,1721288058392,-500.0,0.00025205,2]
[332528061,1721288058401,-802.6,0.00025205,2]
[332528062,1721288058411,-503.75268166,0.00025205,2]
[332528063,1721288058420,-579.37,0.00025205,2]
[332528064,1721288058429,-780.83,0.00025205,2]
[332528065,1721288058439,-781.35,0.00025205,2]
[332528066,1721288058448,-724.1,0.00025205,2]
[332528067,1721288058457,-508.88028658,0.00025205,2]
[332528068,1721288058467,-500.0,0.00025205,2]
[332528069,1721288058478,-568.82,0.00025205,2]
[332528070,1721288058489,-506.87553918,0.00025205,2]
[332528071,1721288058498,-1287.42,0.00025205,2]
[332528072,1721288058508,-507.66127178,0.00025205,2]
[332528073,1721288058518,-771.73,0.00025205,2]
[332528074,1721288058528,-1353.92,0.00025205,2]
[332528075,1721288058538,-1387.82,0.00025205,2]
[332528076,1721288058547,-500.0,0.00025205,2]
[332528077,1721288058557,-500.0,0.00025205,2]
[332528078,1721288058566,-553.81,0.00025205,2]
[332528079,1721288058575,-500.0,0.00025205,2]
[332528080,1721288058586,-500.0,0.00025205,2]
[332528081,1721288058595,-504.18774445,0.00025205,2]
[332528082,1721288058605,-682.98,0.00025205,2]
[332528083,1721288058615,-911.72,0.00025205,2]
[332528084,1721288058625,-819.38,0.00025205,2]
[332528085,1721288058634,-972.31,0.00025205,2]
[332528086,1721288058644,-500.0,0.00025205,2]
[332528087,1721288058657,-1109.76,0.00025205,2]
[332528088,1721288058667,-500.0,0.00025205,2]
[332528089,1721288058676,-836.26,0.00025205,2]
[332528090,1721288058686,-544.15,0.00025205,2]
[332528091,1721288058697,-500.0,0.00025205,2]
[332528092,1721288058706,-744.75,0.00025205,2]
[332528093,1721288058716,-659.68,0.00025205,2]
[332528094,1721288058728,-1074.46,0.00025205,2]
[332528095,1721288058738,-918.1,0.00025205,2]
[332528096,1721288058748,-637.37,0.00025205,2]
[332528097,1721288058758,-500.0,0.00025205,2]
[332528098,1721288058767,-941.47,0.00025205,2]
[332528099,1721288058777,-808.27,0.00025205,2]
[332528100,1721288058787,-1715.0,0.00025205,2]
[332528101,1721288058796,-543.92,0.00025205,2]
[332528102,1721288058806,-500.0,0.00025205,2]
[332528103,1721288058816,-848.98,0.00025205,2]
[332528104,1721288058826,-500.0,0.00025205,2]
[332528105,1721288058835,-702.02,0.00025205,2]
[332528106,1721288058845,-833.62,0.00025205,2]
[332528107,1721288058854,-747.03,0.00025205,2]
[332528108,1721288058864,-694.12,0.00025205,2]
[332528109,1721288058874,-1393.96,0.00025205,2]
[332528110,1721288058884,-923.3,0.00025205,2]
[332528111,1721288058893,-864.51,0.00025205,2]
[332528112,1721288058903,-874.63,0.00025205,2]
[332528113,1721288058913,-572.13,0.00025205,2]
[332528114,1721288058923,-500.0,0.00025205,2]
[332528115,1721288058933,-768.44,0.00025205,2]
[332528116,1721288058942,-919.94,0.00025205,2]
[332528117,1721288058953,-500.0,0.00025205,2]
[332528118,1721288058962,-515.12538916,0.00025205,2]
[332528119,1721288058972,-500.0,0.00025205,2]
[332528120,1721288058983,-500.0,0.00025205,2]
[332528121,1721288058993,-500.0,0.00025205,2]
[332528122,1721288059003,-567.01,0.00025205,2]
[332528123,1721288059013,-750.97,0.00025205,2]
[332528124,1721288059023,-508.95124643,0.00025205,2]
[332528125,1721288059033,-664.81,0.00025205,2]
[332528126,1721288059042,-500.0,0.00025205,2]
[332528127,1721288059052,-1439.37,0.00025205,2]
[332528128,1721288059062,-820.24,0.00025205,2]
[332528129,1721288059072,-500.0,0.00025205,2]
[332528130,1721288059082,-194.80747455,0.00025205,2]
[332528131,1721288059092,-659.88,0.00025205,2]
[332528132,1721288059102,-500.0,0.00025205,2]
[332528133,1721288059111,-675.36,0.00025205,2]
[332528134,1721288059121,-500.0,0.00025205,2]
[332528135,1721288059130,-1239.37,0.00025205,2]
[332528136,1721288059140,-587.43,0.00025205,2]
[332528137,1721288059149,-500.0,0.00025205,2]
[332528138,1721288059159,-500.0,0.00025205,2]
[332528139,1721288059169,-1037.75,0.00025205,2]
[332528140,1721288059179,-1312.95,0.00025205,2]
[332528141,1721288059189,-500.0,0.00025205,2]
[332528142,1721288059199,-500.0,0.00025205,2]
[332528143,1721288059208,-1508.18,0.00025205,2]
[332528144,1721288059217,-759.36,0.00025205,2]
[332528145,1721288059228,-513.09927192,0.00025205,2]
[332528146,1721288059238,-589.69,0.00025205,2]
[332528147,1721288059247,-589.59,0.00025205,2]
[332528148,1721288059257,-500.0,0.00025205,2]
[332528149,1721288059267,-500.0,0.00025205,2]
[332528150,1721288059276,-519.36,0.00025205,2]
[332528151,1721288059286,-465.48,0.00025205,2]
[332528152,1721288059296,-500.0,0.00025205,2]
[332528153,1721288059305,-510.17689339,0.00025205,2]
[332528154,1721288059315,-500.0,0.00025205,2]
[332528155,1721288059325,-1570.3,0.00025205,2]
[332528156,1721288059335,-500.0,0.00025205,2]
[332528157,1721288059345,-509.12609748,0.00025205,2]
[332528158,1721288059354,-175.91585,0.00025205,2]
[332528159,1721288059363,-500.0,0.00025205,2]
[332528160,1721288059373,-684.5,0.00025205,2]
[332528161,1721288059383,-505.33883144,0.00025205,2]
[332528162,1721288059393,-778.25,0.00025205,2]
[332528163,1721288059406,-1825.46,0.00025205,2]
[332528164,1721288059416,-647.56,0.00025205,2]
[332528165,1721288059426,-1501.12,0.00025205,2]
[332528166,1721288059436,-506.04311429,0.00025205,2]
[332528167,1721288059445,-649.76,0.00025205,2]
[332528168,1721288059455,-698.16,0.00025205,2]
[332528169,1721288059465,-500.0,0.00025205,2]
[332528170,1721288059475,-500.0,0.00025205,2]
[332528171,1721288059485,-433.79170162,0.00025205,2]
[332528172,1721288059495,-502.11586774,0.00025205,2]
[332528173,1721288059504,-838.21,0.00025205,2]
[332528174,1721288059514,-832.49,0.00025205,2]
[332528175,1721288059524,-349.83408279,0.00025205,2]
[332528176,1721288059533,-635.85,0.00025205,2]
[332528177,1721288059543,-500.0,0.00025205,2]
[332528178,1721288059553,-500.0,0.00025205,2]
[332528179,1721288059563,-1002.59,0.00025205,2]
[332528180,1721288059572,-500.0,0.00025205,2]
[332528181,1721288059582,-634.78124312,0.00025205,2]
[332528182,1721288059592,-500.0,0.00025205,2]
[332528183,1721288059602,-1264.99,0.00025205,2]
[332528184,1721288059612,-558.12,0.00025205,2]
[332528185,1721288059622,-667.65,0.00025205,2]
[332528186,1721288059632,-828.72,0.00025205,2]
[332528187,1721288059642,-825.13,0.00025205,2]
[332528188,1721288059652,-935.3,0.00025205,2]
[332528189,1721288059665,-184.94653298,0.00025205,2]
[332528190,1721288059676,-500.0,0.00025205,2]
[332528191,1721288059686,-500.0,0.00025205,2]
[332528192,1721288059696,-572.09,0.00025205,2]
[332528193,1721288059708,-801.73,0.00025205,2]
[332528194,1721288059717,-829.06,0.00025205,2]
[332528195,1721288059729,-500.0,0.00025205,2]
[332528196,1721288059739,-500.0,0.00025205,2]
[332528197,1721288059750,-500.0,0.00025205,2]
[332528198,1721288059761,-533.21,0.00025205,2]
[332528199,1721288059772,-1500.37,0.00025205,2]
[332528200,1721288059782,-993.33,0.00025205,2]
[332528201,1721288059792,-504.22865779,0.00025205,2]
[332528202,1721288059802,-500.0,0.00025205,2]
[332528203,1721288059813,-614.68,0.00025205,2]
[332528204,1721288059823,-839.63,0.00025205,2]
[332528205,1721288059832,-1099.16,0.00025205,2]
[332528206,1721288059842,-2190.92,0.00025205,2]
[332528207,1721288059852,-769.89,0.00025205,2]
[332528208,1721288059862,-1387.79,0.00025205,2]
[332528209,1721288059874,-860.39,0.00025205,2]
[332528210,1721288059884,-916.75,0.00025205,2]
[332528211,1721288059894,-500.0,0.00025205,2]
[332528212,1721288059904,-500.0,0.00025205,2]
[332528213,1721288059914,-621.09,0.00025205,2]
[332528214,1721288059923,-500.0,0.00025205,2]
[332528215,1721288059933,-2607.0,0.00025205,2]
[332528216,1721288059943,-500.0,0.00025205,2]
[332528217,1721288059953,-934.95,0.00025205,2]
[332528218,1721288059963,-634.32,0.00025205,2]
[332528219,1721288059973,-1185.83,0.00025205,2]
[332528220,1721288059985,-714.68,0.00025205,2]
[332528221,1721288059995,-500.0,0.00025205,2]
[332528222,1721288060005,-504.16136973,0.00025205,2]
[332528223,1721288060017,-706.1,0.00025205,2]
[332528224,1721288060027,-992.23,0.00025205,2]
[332528225,1721288060036,-505.0,0.00025205,2]
[332528226,1721288060046,-500.0,0.00025205,2]
[332528227,1721288060055,-719.06,0.00025205,2]
[332528228,1721288060064,-500.0,0.00025205,2]
[332528229,1721288060073,-500.0,0.00025205,2]
[332528230,1721288060083,-879.71,0.00025205,2]
[332528231,1721288060093,-962.74,0.00025205,2]
[332528232,1721288060103,-4194.17,0.00025205,2]
[332528233,1721288060113,-500.0,0.00025205,2]
[332528234,1721288060122,-648.58461366,0.00025205,2]
[332528235,1721288060132,-500.0,0.00025205,2]
[332528236,1721288060141,-500.0,0.00025205,2]
[332528237,1721288060151,-500.0,0.00025205,2]
[332528238,1721288060160,-796.16,0.00025205,2]
[332528239,1721288060171,-845.59,0.00025205,2]
[332528240,1721288060180,-1343.67,0.00025205,2]
[332528241,1721288060190,-508.57670531,0.00025205,2]
[332528242,1721288060200,-607.98,0.00025205,2]
[332528243,1721288060209,-500.0,0.00025205,2]
[332528244,1721288060218,-884.87,0.00025205,2]
[332528245,1721288060230,-500.0,0.00025205,2]
[332528246,1721288060240,-506.1456483,0.00025205,2]
[332528247,1721288060250,-563.78,0.00025205,2]
[332528248,1721288060260,-511.60114691,0.00025205,2]
[332528249,1721288060270,-664.21,0.00025205,2]
[332528250,1721288060279,-619.48,0.00025205,2]
[332528251,1721288060288,-1023.41,0.00025205,2]
[332528252,1721288060298,-500.0,0.00025205,2]
[332528253,1721288060307,-4286.57,0.00025205,2]
[332528254,1721288060316,-759.2,0.00025205,2]
[332528255,1721288060326,-500.0,0.00025205,2]
[332528256,1721288060335,-504.32608856,0.00025205,2]
[332528257,1721288060345,-1303.0,0.00025205,2]
[332528258,1721288060355,-664.93,0.00025205,2]
[332528259,1721288060364,-799.99,0.00025205,2]
[332528260,1721288060377,-779.15,0.00025205,2]
[332528261,1721288060386,-500.0,0.00025205,2]
[332528262,1721288060396,-840.9,0.00025205,2]
[332528263,1721288060406,-705.02,0.00025205,2]
[332528264,1721288060416,-500.0,0.00025205,2]
[332528265,1721288060425,-699.13,0.00025205,2]
[332528266,1721288060434,-210.11155694,0.00025205,2]
[332528267,1721288060443,-503.79715895,0.00025205,2]
[332528268,1721288060453,-503.83984063,0.00025205,2]
[332528269,1721288060462,-712.43,0.00025205,2]
[332528270,1721288060472,-615.07,0.00025205,2]
[332528271,1721288060482,-500.0,0.00025205,2]
[332528272,1721288060491,-640.55,0.00025205,2]
[332528273,1721288060500,-503.64720571,0.00025205,2]
[332528274,1721288060510,-842.93,0.00025205,2]
[332528275,1721288060519,-1213.95,0.00025205,2]
[332528276,1721288060529,-500.0,0.00025205,2]
[332528277,1721288060538,-500.0,0.00025205,2]
[332528278,1721288060548,-515.65,0.00025205,2]
[332528279,1721288060557,-500.0,0.00025205,2]
[332528280,1721288060567,-964.94,0.00025205,2]
[332528281,1721288060575,-592.68,0.00025205,2]
[332528282,1721288060585,-6375.98,0.00025205,2]
[332528283,1721288060594,-1083.93,0.00025205,2]
[332528284,1721288060603,-1379.21,0.00025205,2]
[332528285,1721288060611,-1037.41,0.00025205,2]
[332528286,1721288060621,-500.0,0.00025205,2]
[332528287,1721288060631,-1777.51,0.00025205,2]
[332528288,1721288060641,-559.08,0.00025205,2]
[332528289,1721288060649,-506.73664018,0.00025205,2]
[332528290,1721288060660,-1444.47,0.00025205,2]
[332528291,1721288060670,-1147.47,0.00025205,2]
[332528292,1721288060679,-510.14484147,0.00025205,2]
[332528293,1721288060688,-815.97,0.00025205,2]
[332528294,1721288060700,-1394.22,0.00025205,2]
[332528295,1721288060717,-500.0,0.00025205,2]
[332528296,1721288060730,-1149.47,0.00025205,2]
[332528297,1721288060748,-510.00395454,0.00025205,2]
[332528298,1721288060764,-511.74484117,0.00025205,2]
[332528299,1721288060780,-588.95,0.00025205,2]
[332528300,1721288060796,-7884.99,0.00025205,2]
[332528301,1721288060809,-1142.52,0.00025205,2]
[332528302,1721288060825,-2350.96,0.00025205,2]
[332528303,1721288060841,-509.98214188,0.00025205,2]
[332528304,1721288060854,-507.56563391,0.00025205,2]
[332528305,1721288060868,-751.24,0.00025205,2]
[332528306,1721288060884,-500.0,0.00025205,2]
[332528307,1721288060901,-518.01,0.00025205,2]
[332528308,1721288060917,-1047.43,0.00025205,2]
[332528309,1721288060929,-9262.82,0.00025205,2]
[332528310,1721288060943,-576.17,0.00025205,2]
[332528311,1721288060960,-817.71,0.00025205,2]
[332528312,1721288060975,-513.66966385,0.00025205,2]
[332528313,1721288060990,-500.0,0.00025205,2]
[332528314,1721288061003,-567.84,0.00025205,2]
[332528315,1721288061017,-943.1,0.00025205,2]
[332528316,1721288061030,-714.81,0.00025205,2]
[332528317,1721288061044,-559.22,0.00025205,2]
[332528318,1721288061059,-671.4,0.00025205,2]
[332528319,1721288061073,-1700.34,0.00025205,2]
[332528320,1721288061087,-595.86,0.00025205,2]
[332528321,1721288061100,-516.10727119,0.00025205,2]
[332528322,1721288061115,-503.73896097,0.00025205,2]
[332528323,1721288061129,-897.02,0.00025205,2]
[332528324,1721288061142,-503.33195287,0.00025205,2]
[332528325,1721288061155,-812.96,0.00025205,2]
[332528326,1721288061169,-763.5,0.00025205,2]
[332528327,1721288061182,-709.03,0.00025205,2]
[332528328,1721288061195,-915.85,0.00025205,2]
[332528329,1721288061209,-500.0,0.00025205,2]
[332528330,1721288061222,-500.0,0.00025205,2]
[332528331,1721288061236,-919.85,0.00025205,2]
[332528332,1721288061250,-1583.56,0.00025205,2]
[332528333,1721288061263,-634.02,0.00025205,2]
[332528334,1721288061276,-1450.66,0.00025205,2]
[332528335,1721288061289,-499.09778996,0.00025205,2]
[332528336,1721288061302,-708.78,0.00025205,2]
[332528337,1721288061315,-948.76,0.00025205,2]
[332528338,1721288061327,-500.0,0.00025205,2]
[332528339,1721288061340,-1051.57,0.00025205,2]
[332528340,1721288061352,-2003.88,0.00025205,2]
[332528341,1721288061365,-601.06,0.00025205,2]
[332528342,1721288061378,-796.81,0.00025205,2]
[332528343,1721288061391,-515.65,0.00025205,2]
[332528344,1721288061404,-1013.83,0.00025205,2]
[332528345,1721288061417,-500.0,0.00025205,2]
[332528346,1721288061431,-544.27,0.00025205,2]
[332528347,1721288061444,-503.35,0.00025205,2]
[332528348,1721288061456,-1299.19,0.00025205,2]
[332528349,1721288061471,-1547.31,0.00025205,2]
[332528350,1721288061485,-504.52048725,0.00025205,2]
[332528351,1721288061498,-500.0,0.00025205,2]
[332528352,1721288061511,-612.66,0.00025205,2]
[332528353,1721288061524,-957.7,0.00025205,2]
[332528354,1721288061536,-999.04,0.00025205,2]
[332528355,1721288061549,-677.55,0.00025205,2]
[332528356,1721288061561,-515.49365591,0.00025205,2]
[332528357,1721288061573,-549.83,0.00025205,2]
[332528358,1721288061589,-798.47,0.00025205,2]
[332528359,1721288061601,-520.20384442,0.00025205,2]
[332528360,1721288061620,-695.01,0.00025205,2]
[332528361,1721288061635,-518.09,0.00025205,2]
[332528362,1721288061648,-813.28,0.00025205,2]
[332528363,1721288061665,-1656.81,0.00025205,2]
[332528364,1721288061678,-945.22,0.00025205,2]
[332528365,1721288061690,-947.17,0.00025205,2]
[332528366,1721288061704,-539.79,0.00025205,2]
[332528367,1721288061718,-706.37,0.00025205,2]
[332528368,1721288061731,-1135.75,0.00025205,2]
[332528369,1721288061744,-673.53,0.00025205,2]
[332528370,1721288061757,-3128.96,0.00025205,2]
[332528371,1721288061773,-557.31,0.00025205,2]
[332528372,1721288061786,-669.1,0.00025205,2]
[332528373,1721288061800,-3223.32,0.00025205,2]
[332528374,1721288061813,-842.49,0.00025205,2]
[332528375,1721288061826,-542.57,0.00025205,2]
[332528376,1721288061838,-836.84,0.00025205,2]
[332528377,1721288061851,-884.02,0.00025205,2]
[332528378,1721288061864,-1416.46,0.00025205,2]
[332528379,1721288061877,-525.77,0.00025205,2]
[332528380,1721288061890,-500.0,0.00025205,2]
[332528381,1721288061904,-808.77,0.00025205,2]
[332528382,1721288061917,-171.88095497,0.00025205,2]
[332528383,1721288061930,-813.18,0.00025205,2]
[332528384,1721288061943,-888.04,0.00025205,2]
[332528385,1721288061956,-2204.96,0.00025205,2]
[332528386,1721288061970,-500.0,0.00025205,2]
[332528387,1721288061987,-617.34,0.00025205,2]
[332528388,1721288061999,-503.15,0.00025205,2]
[332528389,1721288062013,-500.0,0.00025205,2]
[332528390,1721288062025,-550.97,0.00025205,2]
[332528391,1721288062039,-282.1430485,0.00025205,2]
[332528392,1721288062052,-773.79,0.00025205,2]
[332528393,1721288062064,-1258.11,0.00025205,2]
[332528394,1721288062077,-556.49,0.00025205,2]
[332528395,1721288062089,-1541.61,0.00025205,2]
[332528396,1721288062101,-500.0,0.00025205,2]
[332528397,1721288062114,-923.36,0.00025205,2]
[332528398,1721288062127,-1497.76,0.00025205,2]
[332528399,1721288062140,-500.0,0.00025205,2]
[332528400,1721288062153,-698.16,0.00025205,2]
[332528401,1721288062165,-1777.63,0.00025205,2]
[332528402,1721288062177,-1751.66,0.00025205,2]
[332528403,1721288062189,-500.0,0.00025205,2]
[332528404,1721288062201,-216.48,0.00025205,2]
[332528405,1721288062214,-748.62,0.00025205,2]
[332528406,1721288062229,-702.74,0.00025205,2]
[332528407,1721288062241,-1440.65,0.00025205,2]
[332528408,1721288062253,-500.0,0.00025205,2]
[332528409,1721288062265,-500.0,0.00025205,2]
[332528410,1721288062276,-600.34,0.00025205,2]
[332528411,1721288062288,-1459.37,0.00025205,2]
[332528412,1721288062300,-834.65,0.00025205,2]
[332528413,1721288062312,-574.9,0.00025205,2]
[332528414,1721288062323,-967.34,0.00025205,2]
[332528415,1721288062335,-945.46,0.00025205,2]
[332528416,1721288062347,-6789.46,0.00025205,2]
[332528417,1721288062359,-1351.16,0.00025205,2]
[332528418,1721288062371,-1649.03,0.00025205,2]
[332528419,1721288062383,-846.83,0.00025205,2]
[332528420,1721288062396,-3838.48,0.00025205,2]
[332528421,1721288062409,-727.83,0.00025205,2]
[332528422,1721288062421,-365.91142704,0.00025205,2]
[332528423,1721288062433,-1099.8,0.00025205,2]
[332528424,1721288062445,-592.88,0.00025205,2]
[332528425,1721288062456,-758.27,0.00025205,2]
[332528426,1721288062468,-1314.69,0.00025205,2]
[332528427,1721288062482,-660.25,0.00025205,2]
[332528428,1721288062495,-1225.2,0.00025205,2]
[332528429,1721288062508,-690.8,0.00025205,2]
[332528430,1721288062521,-351.2266081,0.00025205,2]
[332528431,1721288062533,-815.9,0.00025205,2]
[332528432,1721288062545,-1445.6,0.00025205,2]
[332528433,1721288062556,-1211.24,0.00025205,2]
[332528434,1721288062567,-500.0,0.00025205,2]
[332528435,1721288062579,-764.9,0.00025205,2]
[332528436,1721288062591,-1017.79,0.00025205,2]
[332528437,1721288062603,-500.0,0.00025205,2]
[332528438,1721288062614,-819.77,0.00025205,2]
[332528439,1721288062626,-843.65,0.00025205,2]
[332528440,1721288062637,-508.09,0.00025205,2]
[332528441,1721288062649,-181.65406285,0.00025205,2]
[332528442,1721288062665,-4510.49,0.00025205,2]
[332528443,1721288062677,-1121.8,0.00025205,2]
[332528444,1721288062689,-615.98,0.00025205,2]
[332528445,1721288062702,-548.62,0.00025205,2]
[332528446,1721288062714,-500.0,0.00025205,2]
[332528447,1721288062726,-732.51,0.00025205,2]
[332528448,1721288062741,-727.51,0.00025205,2]
[332528449,1721288062753,-500.0,0.00025205,2]
[332528450,1721288062766,-699.69,0.00025205,2]
[332528451,1721288062778,-500.0,0.00025205,2]
[332528452,1721288062789,-780.84,0.00025205,2]
[332528453,1721288062800,-985.19,0.00025205,2]
[332528454,1721288062812,-2219.16,0.00025205,2]
[332528455,1721288062824,-661.47,0.00025205,2]
[332528456,1721288062836,-2008.64,0.00025205,2]
[332528457,1721288062848,-707.34,0.00025205,2]
[332528458,1721288062860,-776.84,0.00025205,2]
[332528459,1721288062872,-500.0,0.00025205,2]
[332528460,1721288062883,-2197.33,0.00025205,2]
[332528461,1721288062895,-500.0,0.00025205,2]
[332528462,1721288062907,-813.45,0.00025205,2]
[332528463,1721288062919,-6067.08,0.00025205,2]
[332528464,1721288062931,-1222.6,0.00025205,2]
[332528465,1721288062944,-685.95,0.00025205,2]
[332528466,1721288062957,-885.84,0.00025205,2]
[332528467,1721288062969,-500.0,0.00025205,2]
[332528468,1721288062982,-500.0,0.00025205,2]
[332528469,1721288062995,-589.04,0.00025205,2]
[332528470,1721288063011,-703.44,0.00025205,2]
[332528471,1721288063024,-919.77,0.00025205,2]
[332528472,1721288063037,-2956.08,0.00025205,2]
[332528473,1721288063049,-699.95,0.00025205,2]
[332528474,1721288063061,-500.0,0.00025205,2]
[332528475,1721288063073,-758.73,0.00025205,2]
[332528476,1721288063085,-500.0,0.00025205,2]
[332528477,1721288063098,-1023.99,0.00025205,2]